bitfinex/quotes_BTCUSD_20241111
["timestamp","ask_amount","ask_price","bid_price","bid_amount"]
[1731336007890,0.18190969,82393.0,82367.0,0.1]
[1731336007891,0.12594221,82392.0,82379.0,0.003]
[1731336008107,0.121376,82389.0,82380.0,0.18190969]
[1731336008332,1.68190969,82402.0,82379.0,0.003]
[1731336008333,0.02389764,82387.0,82379.0,0.003]
[1731336008536,0.02389764,82387.0,82386.0,0.003]
[1731336008811,0.02389764,82387.0,82373.0,0.242797]
[1731336008812,0.02389764,82387.0,82375.0,0.121395]
[1731336009008,0.18190969,82401.0,82377.0,0.121393]
[1731336009324,0.18190969,82391.0,82383.0,0.121382]
[1731336009537,0.05,82395.0,82370.0,0.242806]
[1731336009867,0.18190969,82392.0,82378.0,0.242781]
[1731336010120,0.18190969,82392.0,82369.0,0.121404]
[1731336010121,0.12594221,82391.0,82369.0,0.121404]
[1731336010282,0.121374,82390.0,82380.0,0.002]
[1731336010611,0.18190969,82392.0,82380.0,0.002]
[1731336010612,0.12594221,82389.0,82380.0,0.002]
[1731336010821,0.12594221,82389.0,82371.0,0.121401]
[1731336011033,0.12594221,82389.0,82370.0,0.003]
[1731336011281,0.18190969,82383.0,82360.0,0.242835]
[1731336011487,0.18190969,82383.0,82354.0,0.18190969]
[1731336011488,0.0754,82377.0,82354.0,0.18190969]
[1731336011691,0.12594221,82376.0,82363.0,0.18190969]
[1731336011895,0.12594221,82376.0,82365.0,0.12141]
[1731336012109,0.18690969,82392.0,82366.0,0.00242816]
[1731336012110,0.0754,82390.0,82366.0,0.00242816]
[1731336012330,0.18190969,82383.0,82371.0,0.121401]
[1731336012564,0.18190969,82383.0,82378.0,0.121391]
[1731336012959,0.0754,82390.0,82376.0,0.121393]
[1731336013186,0.20134221,82390.0,82365.0,0.1]
[1731336013395,0.20134221,82390.0,82367.0,0.364222]
[1731336013592,0.20134221,82390.0,82366.0,0.242818]
[1731336013796,0.18190969,82383.0,82358.0,0.242842]
[1731336013997,0.12594221,82389.0,82375.0,0.121396]
[1731336014211,0.18190969,82383.0,82368.0,0.242812]
[1731336014440,0.18190969,82383.0,82377.0,0.121392]
[1731336014678,0.12594221,82389.0,82381.0,0.121386]
[1731336014885,0.0754,82390.0,82365.0,0.18190969]
[1731336015143,0.63432183,82405.0,82387.0,0.18190969]
[1731336015367,0.63432183,82405.0,82383.0,0.25011579]
[1731336015368,0.18190969,82394.0,82393.0,0.121369]
[1731336015569,0.18190969,82394.0,82366.0,0.105]
[1731336015778,0.15690969,82394.0,82393.0,0.00333784]
[1731336015981,0.0797,82394.0,82365.0,0.242821]
[1731336016193,0.121384,82383.0,82365.0,0.121409]
[1731336016409,0.1483851,82382.0,82374.0,0.18190969]
[1731336016610,0.02244289,82381.0,82366.0,0.00336888]
[1731336016811,0.12594221,82380.0,82375.0,0.00336548]
[1731336016987,0.12594221,82380.0,82366.0,0.242817]
[1731336017192,0.02246766,82379.0,82357.0,0.242845]
[1731336017395,0.242788,82377.0,82367.0,0.00362278]
[1731336017596,0.14840987,82376.0,82356.0,0.000845]
[1731336017800,0.02246766,82375.0,82362.0,0.121414]
[1731336018010,0.02246766,82375.0,82357.0,0.242845]
[1731336018011,0.02246766,82374.0,82358.0,0.0379989]
[1731336018212,0.18690969,82392.0,82370.0,0.242806]
[1731336018213,0.02246766,82373.0,82370.0,0.242806]
[1731336018414,0.18190969,82378.0,82372.0,0.121399]
[1731336018588,0.02248827,82377.0,82373.0,0.00363972]
[1731336018793,0.42965169,82392.0,82367.0,0.003]
[1731336018794,0.33034017,82376.0,82367.0,0.003]
[1731336018993,0.02248827,82375.0,82370.0,0.242806]
[1731336019198,0.02248827,82374.0,82371.0,0.00363683]
[1731336019403,0.18190969,82383.0,82370.0,0.242806]
[1731336019632,0.02251505,82382.0,82381.0,0.121387]
[1731336019846,0.18190969,82392.0,82381.0,0.00363087]
[1731336020071,0.18190969,82392.0,82381.0,0.121387]
[1731336020072,0.18190969,82382.0,82381.0,0.121387]
[1731336020319,0.0775,82408.0,82381.0,0.00361777]
[1731336020554,0.18190969,82386.0,82382.0,0.00242745]
[1731336020776,0.18190969,82395.0,82376.0,0.242788]
[1731336020956,0.14848107,82394.0,82381.0,0.121386]
[1731336021093,0.02253886,82393.0,82379.0,0.121389]
[1731336021294,0.26985207,82392.0,82382.0,0.0032607]
[1731336021579,0.02253886,82391.0,82380.0,0.00326143]
[1731336021779,0.02253886,82390.0,82377.0,0.18190969]
[1731336021986,0.18190969,82404.0,82403.0,0.121354]
[1731336022196,0.20446224,82404.0,82393.0,0.005]
[1731336022433,0.18190969,82404.0,82403.0,0.1245843]
[1731336022616,0.18190969,82404.0,82392.0,0.342742]
[1731336022617,0.18190969,82416.0,82413.0,0.121339]
[1731336022867,0.18190969,82416.0,82374.0,0.18190969]
[1731336022868,0.0018217,82419.0,82418.0,0.121332]
[1731336023291,0.0018217,82419.0,82418.0,0.25720051]
[1731336023495,0.0018217,82419.0,82418.0,0.22375822]
[1731336023712,0.0018217,82419.0,82418.0,0.121332]
[1731336023908,0.0018217,82419.0,82418.0,0.38814284]
[1731336024081,0.0018217,82419.0,82418.0,0.35227421]
[1731336024325,0.0018217,82419.0,82418.0,0.35727421]
[1731336024530,0.0018217,82419.0,82418.0,0.35927421]
[1731336024934,7e-07,82419.0,82418.0,0.38227421]
[1731336025086,7e-07,82426.0,82425.0,0.63899307]
[1731336025297,7e-07,82426.0,82425.0,0.75993528]
[1731336025472,7e-07,82426.0,82425.0,0.35226421]
[1731336025672,7e-07,82426.0,82425.0,0.34726421]
[1731336025857,7e-07,82426.0,82425.0,0.221322]
[1731336026067,7e-07,82426.0,82425.0,0.121322]
[1731336026877,7e-07,82426.0,82425.0,0.2857065]
[1731336027113,7e-07,82426.0,82425.0,0.2907065]
[1731336027362,0.18190969,82485.0,82468.0,0.121259]
[1731336028068,0.18190969,82485.0,82453.0,0.24256]
[1731336028276,0.121236,82484.0,82449.0,0.1]
[1731336028479,0.121236,82484.0,82425.0,0.12492292]
[1731336028480,0.18190969,82469.0,82434.0,0.005]
[1731336028690,0.38467107,82480.0,82448.0,0.121288]
[1731336028691,0.12594221,82468.0,82448.0,0.121288]
[1731336028894,0.18190969,82467.0,82447.0,0.242577]
[1731336029380,0.18190969,82467.0,82448.0,0.242577]
[1731336029590,0.18190969,82467.0,82457.0,0.121274]
[1731336029727,0.18190969,82467.0,82454.0,0.242556]
[1731336029940,0.12594221,82468.0,82448.0,0.18190969]
[1731336030152,0.18190969,82467.0,82434.0,0.005]
[1731336030422,0.18190969,82467.0,82419.0,0.00820011]
[1731336030423,0.0791,82461.0,82447.0,0.121288]
[1731336030606,0.12594221,82460.0,82448.0,0.002]
[1731336030806,0.12594221,82460.0,82457.0,0.121274]
[1731336030994,0.30815769,82476.0,82465.0,0.121263]
[1731336030995,0.18190969,82466.0,82465.0,0.121263]
[1731336031189,0.18190969,82466.0,82452.0,0.04103676]
[1731336031190,0.18190969,82476.0,82475.0,0.121248]
[1731336031394,0.18190969,82476.0,82473.0,0.121251]
[1731336031593,0.23080969,82485.0,82456.0,0.1]
[1731336031894,0.23080969,82485.0,82480.0,0.12124]
[1731336032105,0.077,82492.0,82457.0,0.12594221]
[1731336032106,0.02396319,82490.0,82486.0,0.242462]
[1731336032309,0.077,82492.0,82481.0,0.00455852]
[1731336032551,0.077,82492.0,82491.0,0.121225]
[1731336032752,0.077,82492.0,82479.0,0.121241]
[1731336032753,0.20294221,82492.0,82479.0,0.121241]
[1731336032927,0.12594221,82491.0,82478.0,0.18190969]
[1731336033154,0.12594221,82491.0,82464.0,0.18190969]
[1731336033483,0.077,82492.0,82491.0,0.121225]
[1731336033715,0.077,82492.0,82489.0,0.121228]
[1731336033921,0.077,82492.0,82487.0,0.24246]
[1731336034162,0.12594221,82491.0,82479.0,0.242485]
[1731336034342,0.077,82492.0,82474.0,0.18190969]
[1731336034543,0.077,82492.0,82466.0,0.1]
[1731336034691,0.26690969,82492.0,82491.0,0.001]
[1731336034892,0.26690969,82492.0,82487.0,0.12123]
[1731336034893,0.25890969,82492.0,82488.0,0.121228]
[1731336035093,0.25890969,82492.0,82458.0,0.242547]
[1731336035094,0.12594221,82491.0,82475.0,0.242495]
[1731336035295,0.12594221,82491.0,82476.0,0.18190969]
[1731336035497,0.12594221,82491.0,82482.0,0.121237]
[1731336035923,0.12594221,82491.0,82467.0,0.242521]
[1731336036127,0.12594221,82491.0,82473.0,0.18190969]
[1731336036335,0.12594221,82491.0,82467.0,0.242521]
[1731336036538,0.12594221,82491.0,82481.0,0.121238]
[1731336036539,0.21955938,82491.0,82481.0,0.121238]
[1731336036752,0.21955938,82491.0,82461.0,0.005]
[1731336036753,0.18190969,82483.0,82469.0,0.242515]
[1731336036915,0.12594221,82482.0,82479.0,0.121242]
[1731336037110,0.12594221,82482.0,82467.0,0.002]
[1731336037369,0.12594221,82482.0,82460.0,0.242539]
[1731336037512,0.18190969,82481.0,82450.0,0.005]
[1731336037709,0.3078519,82480.0,82469.0,0.242512]
[1731336037921,0.3078519,82480.0,82455.0,0.18190969]
[1731336037922,0.3078519,82480.0,82479.0,0.121242]
[1731336038147,0.3078519,82480.0,82472.0,0.121252]
[1731336038364,0.12594221,82480.0,82467.0,0.002]
[1731336038554,0.12594221,82480.0,82468.0,0.121259]
[1731336038776,0.12594221,82480.0,82467.0,0.24452]
[1731336039002,0.0484,82478.0,82469.0,0.0042681]
[1731336039159,0.0484,82478.0,82467.0,0.002]
[1731336039160,0.12594221,82477.0,82468.0,0.0042726]
[1731336039337,0.12594221,82477.0,82467.0,0.002]
[1731336039338,0.121259,82468.0,82467.0,0.002]
[1731336039533,0.12594221,82468.0,82455.0,0.18190969]
[1731336039739,0.0484,82478.0,82465.0,0.242527]
[1731336040031,0.18190969,82477.0,82476.0,0.121247]
[1731336040871,0.12763221,82480.0,82476.0,0.00426764]
[1731336041066,0.00169,82480.0,82469.0,0.18190969]
[1731336041266,0.00169,82480.0,82465.0,0.002]
[1731336041267,0.00169,82480.0,82479.0,0.121242]
[1731336041479,0.00169,82480.0,82479.0,0.00426764]
[1731336041681,0.00169,82480.0,82470.0,0.242512]
[1731336041891,0.00169,82480.0,82472.0,0.121251]
[1731336042104,0.00169,82480.0,82475.0,0.121247]
[1731336042315,0.00169,82480.0,82473.0,0.00427057]
[1731336042527,0.00169,82480.0,82465.0,0.244525]
[1731336042528,0.00169,82480.0,82476.0,0.0042691]
[1731336042731,0.00169,82480.0,82479.0,0.121242]
[1731336043010,0.00169,82480.0,82475.0,0.242497]
[1731336043176,0.00169,82480.0,82479.0,0.00426764]
[1731336043407,0.00169,82480.0,82465.0,0.002]
[1731336043408,0.12763221,82480.0,82465.0,0.002]
[1731336043746,0.01734562,82480.0,82457.0,0.242549]
[1731336043959,0.01734562,82480.0,82466.0,0.00422509]
[1731336043960,0.12594221,82479.0,82466.0,0.00422509]
[1731336044150,0.12594221,82479.0,82463.0,0.121266]
[1731336044298,0.121246,82477.0,82448.0,0.06]
[1731336044478,0.12594221,82479.0,82464.0,0.00422557]
[1731336044679,0.12594221,82479.0,82449.0,0.00242556]
[1731336044680,0.18190969,82478.0,82456.0,0.242552]
[1731336044882,0.00169,82480.0,82479.0,0.121242]
[1731336045066,0.00169,82480.0,82479.0,0.12546299]
[1731336047180,0.00169,82480.0,82479.0,0.25582989]
[1731336047380,0.00169,82480.0,82479.0,0.26837948]
[1731336047739,0.00169,82480.0,82479.0,0.22746299]
[1731336047861,0.00169,82480.0,82479.0,0.39032988]
[1731336048067,0.00169,82480.0,82479.0,0.38790528]
[1731336048525,0.00169,82480.0,82479.0,0.39507371]
[1731336048977,0.00169,82480.0,82479.0,0.42507371]
[1731336049206,0.00181978,82494.0,82493.0,0.221222]
[1731336049434,0.00181978,82494.0,82493.0,0.38816796]
[1731336049675,0.00181978,82494.0,82493.0,0.22555724]
[1731336050383,0.00181978,82494.0,82493.0,0.38816796]
[1731336050531,0.00181978,82494.0,82493.0,0.22555724]
[1731336050929,7.8e-07,82494.0,82493.0,0.38392361]
[1731336051133,7.8e-07,82494.0,82493.0,0.26422575]
[1731336051365,7.8e-07,82494.0,82493.0,0.35349945]
[1731336051574,0.000687,82502.0,82501.0,0.25421]
[1731336051575,7.8e-07,82502.0,82501.0,0.25421]
[1731336051741,7.8e-07,82502.0,82501.0,0.76482328]
[1731336051960,7.8e-07,82502.0,82501.0,0.78246096]
[1731336052301,7.8e-07,82502.0,82501.0,0.39778989]
[1731336053628,7.8e-07,82502.0,82501.0,0.22752139]
[1731336053886,7.8e-07,82502.0,82501.0,0.12752139]
[1731336054446,0.12121,82501.0,82464.0,0.247527]
[1731336054651,0.13094221,82500.0,82480.0,0.18190969]
[1731336054851,0.0457,82498.0,82481.0,0.0038587]
[1731336055052,0.12594221,82495.0,82481.0,0.0038587]
[1731336055284,0.242455,82490.0,82479.0,0.30315169]
[1731336055489,0.12594221,82489.0,82480.0,0.00385431]
[1731336055716,0.02366497,82487.0,82480.0,0.00385431]
[1731336055921,0.12124,82481.0,82480.0,0.00385431]
[1731336056146,0.12594221,82481.0,82472.0,0.121252]
[1731336056348,0.12594221,82480.0,82478.0,0.121243]
[1731336056551,0.12594221,82480.0,82473.0,0.0048277]
[1731336056685,0.12594221,82480.0,82479.0,0.00413412]
[1731336056880,0.12594221,82480.0,82473.0,0.12125]
[1731336057098,0.12594221,82480.0,82474.0,0.0048264]
[1731336057298,0.02366497,82487.0,82469.0,0.03609228]
[1731336057503,0.3078519,82486.0,82481.0,0.121239]
[1731336057716,0.3078519,82486.0,82482.0,0.0041358]
[1731336057948,0.12594221,82486.0,82482.0,0.0041358]
[1731336058160,0.12594221,82486.0,82474.0,0.002]
[1731336058360,0.12594221,82486.0,82483.0,0.00413524]
[1731336058620,0.12594221,82486.0,82476.0,0.121247]
[1731336058816,0.12594221,82486.0,82474.0,0.002]
[1731336058817,0.12594221,82486.0,82475.0,0.242497]
[1731336059022,0.12594221,82486.0,82477.0,0.12538258]
[1731336059250,0.12594221,82486.0,82476.0,0.00413914]
[1731336059416,0.12594221,82486.0,82478.0,0.12538103]
[1731336059613,0.12594221,82486.0,82477.0,0.00413858]
[1731336059815,0.12594221,82486.0,82473.0,0.242503]
[1731336059816,0.12594221,82486.0,82482.0,0.002]
[1731336060023,0.12594221,82486.0,82478.0,0.00413803]
[1731336060234,0.12594221,82486.0,82483.0,0.00413524]
[1731336060444,0.12594221,82486.0,82476.0,0.002]
[1731336060700,0.12594221,82486.0,82476.0,0.242492]
[1731336060866,0.12594221,82486.0,82485.0,0.121234]
[1731336061075,0.12594221,82486.0,82485.0,0.00413412]
[1731336061278,0.12594221,82486.0,82457.0,0.42945969]
[1731336061279,0.12594221,82486.0,82474.0,0.242498]
[1731336061453,0.12594221,82486.0,82480.0,0.121241]
[1731336061658,0.18190969,82484.0,82481.0,0.00413635]
[1731336061857,0.12594221,82483.0,82467.0,0.18190969]
[1731336062060,0.02386847,82487.0,82477.0,0.242491]
[1731336062381,0.3078519,82486.0,82485.0,0.121234]
[1731336062740,0.12594221,82486.0,82485.0,0.12492014]
[1731336062942,0.12594221,82486.0,82485.0,0.00368614]
[1731336063369,0.12594221,82486.0,82476.0,0.121246]
[1731336063584,0.12594221,82486.0,82475.0,0.18190969]
[1731336063781,0.12594221,82486.0,82477.0,0.00369004]
[1731336063982,0.02386847,82487.0,82486.0,0.121232]
[1731336064192,0.02386847,82487.0,82476.0,0.00369053]
[1731336064193,0.00181974,82495.0,82494.0,0.12122]
[1731336064608,0.00181974,82495.0,82494.0,0.12489256]
[1731336065033,0.00181974,82495.0,82494.0,0.12611674]
[1731336066355,0.00181974,82495.0,82494.0,0.12811674]
[1731336066733,0.00181974,82495.0,82494.0,0.12611674]
[1731336067147,0.00181974,82495.0,82494.0,0.12811674]
[1731336067954,0.00181974,82495.0,82494.0,0.12611674]
[1731336069329,0.12776195,82495.0,82494.0,0.00689674]
[1731336069531,0.005,82492.0,82457.0,0.18190969]
[1731336069741,0.46287915,82495.0,82478.0,0.18190969]
[1731336069742,0.005,82485.0,82478.0,0.18190969]
[1731336069932,0.12594221,82484.0,82469.0,0.00485058]
[1731336070136,0.24717821,82484.0,82468.0,0.030844]
[1731336070428,0.12594221,82484.0,82470.0,0.00484356]
[1731336070555,0.12594221,82484.0,82481.0,0.121239]
[1731336070756,0.09449594,82495.0,82494.0,0.12122]
[1731336070757,0.00181974,82495.0,82494.0,0.12122]
[1731336071160,0.00181974,82495.0,82494.0,0.35197678]
[1731336071368,0.18190969,82505.0,82494.0,0.35197678]
[1731336071369,0.11946649,82505.0,82495.0,0.005]
[1731336071606,0.11946649,82505.0,82504.0,0.121206]
[1731336072054,0.000687,82509.0,82504.0,0.00480717]
[1731336072266,0.000687,82509.0,82501.0,0.24242]
[1731336072267,0.000687,82509.0,82508.0,0.1212]
[1731336072490,0.000687,82509.0,82508.0,0.00480781]
[1731336072698,0.000687,82509.0,82482.0,0.03870087]
[1731336072956,0.000687,82509.0,82507.0,0.1212]
[1731336073159,0.000687,82509.0,82504.0,0.242409]
[1731336073358,0.000687,82509.0,82508.0,0.00480846]
[1731336073603,0.000687,82509.0,82489.0,0.03870087]
[1731336073604,0.12662921,82509.0,82496.0,0.121216]
[1731336073832,0.12662921,82509.0,82490.0,0.121225]
[1731336073833,0.0816,82507.0,82490.0,0.121225]
[1731336074030,0.0816,82507.0,82496.0,0.18190969]
[1731336074031,0.12594221,82506.0,82496.0,0.18190969]
[1731336074254,0.0816,82507.0,82488.0,0.242459]
[1731336074439,0.0816,82507.0,82487.0,0.18190969]
[1731336074440,0.12594221,82507.0,82487.0,0.18190969]
[1731336074656,0.000687,82509.0,82508.0,0.1212]
[1731336075228,0.000687,82509.0,82508.0,0.15990087]
[1731336075453,0.000687,82509.0,82508.0,0.39326678]
[1731336075677,0.007655,82521.0,82520.0,0.121182]
[1731336075932,0.007655,82521.0,82520.0,0.35212421]
[1731336076788,0.007655,82521.0,82520.0,0.35312421]
[1731336077270,0.007655,82521.0,82520.0,0.35812421]
[1731336077740,0.007655,82521.0,82520.0,0.001]
[1731336077741,0.13359721,82521.0,82520.0,0.001]
[1731336077988,0.007655,82521.0,82520.0,0.122182]
[1731336078465,0.007655,82521.0,82520.0,0.25812421]
[1731336078681,0.007655,82521.0,82520.0,0.28886077]
[1731336078904,0.007655,82521.0,82520.0,0.31886077]
[1731336079124,0.007655,82521.0,82520.0,0.41886077]
[1731336079333,0.007655,82521.0,82520.0,0.252182]
[1731336079792,0.007655,82521.0,82520.0,0.151182]
[1731336080015,0.007655,82521.0,82520.0,0.152182]
[1731336080225,0.007655,82521.0,82520.0,0.03]
[1731336080452,0.087955,82521.0,82520.0,0.03]
[1731336080677,0.007655,82521.0,82520.0,0.122182]
[1731336080940,0.18190969,82549.0,82539.0,0.121154]
[1731336081158,0.18190969,82549.0,82539.0,0.24709621]
[1731336081375,0.18190969,82549.0,82539.0,0.1253412]
[1731336082705,0.18190969,82549.0,82539.0,0.1263412]
[1731336082948,0.02369909,82557.0,82539.0,0.1263412]
[1731336082949,0.0478,82555.0,82539.0,0.1263412]
[1731336083142,0.0478,82555.0,82539.0,0.1253412]
[1731336083438,0.18190969,82549.0,82539.0,0.1263412]
[1731336083795,0.18190969,82549.0,82539.0,0.1253412]
[1731336084469,0.14482709,82557.0,82539.0,0.1253412]
[1731336084470,0.18190969,82548.0,82539.0,0.1253412]
[1731336085251,0.18190969,82547.0,82539.0,0.1263412]
[1731336085555,0.18190969,82547.0,82539.0,0.1253412]
[1731336085790,0.02369909,82557.0,82539.0,0.1263412]
[1731336085791,0.20560878,82557.0,82539.0,0.1263412]
[1731336086195,0.20560878,82557.0,82539.0,0.1253412]
[1731336086402,0.18190969,82556.0,82539.0,0.1263412]
[1731336086796,0.18190969,82556.0,82539.0,0.1253412]
[1731336087003,0.18190969,82556.0,82539.0,0.1263412]
[1731336087882,0.02369909,82557.0,82552.0,0.005]
[1731336088077,0.000686,82569.0,82562.0,0.121121]
[1731336088390,0.000686,82569.0,82562.0,0.12527825]
[1731336088997,0.000686,82569.0,82562.0,0.16201481]
[1731336089424,0.000686,82569.0,82562.0,0.16543695]
[1731336090028,0.000686,82569.0,82562.0,0.29137916]
[1731336090305,0.000686,82569.0,82562.0,0.4212694]
[1731336090539,0.000686,82569.0,82562.0,0.41695702]
[1731336090747,0.000686,82569.0,82562.0,0.45184744]
[1731336091176,1e-06,82563.0,82562.0,0.53464744]
[1731336091379,4.3e-07,82584.0,82583.0,0.14909]
[1731336091582,4.3e-07,82584.0,82583.0,0.41919029]
[1731336091782,4.3e-07,82584.0,82583.0,0.35103505]
[1731336092002,4.3e-07,82584.0,82583.0,0.12509284]
[1731336092178,4.3e-07,82584.0,82583.0,0.37903505]
[1731336092395,4.3e-07,82584.0,82583.0,0.37403505]
[1731336092585,4.3e-07,82584.0,82583.0,0.35103505]
[1731336092952,4.3e-07,82584.0,82583.0,0.22509284]
[1731336093250,4.3e-07,82584.0,82583.0,0.12609284]
[1731336093684,0.18190969,82599.0,82584.0,0.242176]
[1731336093685,0.12691012,82599.0,82584.0,0.242176]
[1731336093834,0.12691012,82599.0,82583.0,0.00400284]
[1731336093835,0.121074,82594.0,82583.0,0.00400284]
[1731336094046,0.12594221,82593.0,82585.0,0.12510829]
[1731336094256,0.12594221,82593.0,82582.0,0.24218]
[1731336094257,0.12594221,82593.0,82584.0,0.12510617]
[1731336094446,1.5,82592.0,82586.0,0.00402501]
[1731336094622,1.5,82592.0,82585.0,0.00402578]
[1731336094822,1.5,82592.0,82583.0,0.001]
[1731336095024,0.12594221,82591.0,82583.0,0.001]
[1731336095310,0.12594221,82591.0,82571.0,0.18190969]
[1731336095311,0.0762,82590.0,82584.0,0.18190969]
[1731336095487,0.07978164,82600.0,82584.0,0.18190969]
[1731336095488,0.07978164,82600.0,82584.0,0.18290969]
[1731336095805,0.18190969,82592.0,82585.0,0.00402345]
[1731336095943,0.121082,82589.0,82585.0,0.00402345]
[1731336096146,0.549,82603.0,82587.0,0.18190969]
[1731336096488,0.549,82603.0,82599.0,0.30297569]
[1731336096489,0.056,82600.0,82599.0,0.30297569]
[1731336096695,0.056,82600.0,82599.0,0.121066]
[1731336096919,0.01,82600.0,82599.0,0.12507001]
[1731336097676,0.01,82600.0,82599.0,0.25101222]
[1731336098076,0.006,82600.0,82599.0,0.12507001]
[1731336098324,0.006,82600.0,82599.0,0.25101222]
[1731336098712,0.549,82603.0,82602.0,0.131062]
[1731336098718,0.500576,82603.0,82602.0,0.254062]
[1731336098915,0.18190969,82610.0,82603.0,0.25406]
[1731336099118,0.18190969,82610.0,82603.0,0.38000221]
[1731336099323,0.46504135,82612.0,82603.0,0.38000221]
[1731336099324,0.46504135,82612.0,82603.0,0.41219832]
[1731336099543,0.46504135,82612.0,82611.0,0.249049]
[1731336099761,0.46504135,82612.0,82611.0,0.40875112]
[1731336099967,0.46504135,82612.0,82611.0,0.41254492]
[1731336100173,0.28190969,82627.0,82621.0,0.121034]
[1731336100375,0.28190969,82627.0,82621.0,0.24697621]
[1731336100600,0.28190969,82627.0,82621.0,0.121034]
[1731336100811,0.1,82627.0,82621.0,0.0037938]
[1731336101055,0.017131,82622.0,82621.0,0.0037938]
[1731336101273,0.017131,82622.0,82621.0,0.12594221]
[1731336101483,0.017131,82622.0,82621.0,0.24697621]
[1731336101682,0.017131,82622.0,82621.0,0.00378007]
[1731336101894,0.017131,82622.0,82621.0,0.24797621]
[1731336102110,0.017131,82622.0,82621.0,0.25075275]
[1731336102324,0.017131,82622.0,82621.0,0.25575275]
[1731336102535,0.017131,82622.0,82621.0,0.25175275]
[1731336102943,0.017131,82622.0,82621.0,0.12581054]
[1731336103174,0.017131,82622.0,82621.0,0.00477654]
[1731336103619,0.017131,82622.0,82621.0,0.001]
[1731336104050,0.027131,82622.0,82621.0,0.001]
[1731336104464,0.027131,82622.0,82621.0,0.00440129]
[1731336104666,0.027131,82622.0,82621.0,0.001]
[1731336104880,0.027131,82622.0,82621.0,0.12444208]
[1731336105095,0.027131,82622.0,82615.0,0.121042]
[1731336105308,0.027131,82622.0,82617.0,0.121039]
[1731336105513,0.027131,82622.0,82613.0,0.329988]
[1731336105514,0.027131,82622.0,82621.0,0.001]
[1731336105747,0.148164,82622.0,82621.0,0.001]
[1731336105958,0.148164,82622.0,82594.0,0.18190969]
[1731336105959,0.027131,82622.0,82606.0,0.18190969]
[1731336106231,0.027131,82622.0,82615.0,0.18190969]
[1731336106437,0.027131,82622.0,82606.0,0.18190969]
[1731336106438,0.148164,82622.0,82609.0,0.121051]
[1731336106652,0.24207,82621.0,82606.0,0.18190969]
[1731336106867,0.005,82619.0,82610.0,0.18190969]
[1731336107072,0.005,82619.0,82599.0,0.18190969]
[1731336107277,0.242082,82617.0,82599.0,0.18190969]
[1731336107490,0.005,82619.0,82599.0,0.18190969]
[1731336107491,0.12594221,82616.0,82599.0,0.18190969]
[1731336107702,0.121063,82601.0,82600.0,0.18190969]
[1731336107913,0.121056,82606.0,82600.0,0.18190969]
[1731336108116,0.0466,82607.0,82585.0,0.230065]
[1731336108117,0.0466,82607.0,82585.0,0.1]
[1731336108328,0.0466,82607.0,82593.0,0.18190969]
[1731336108329,0.12594221,82606.0,82593.0,0.18190969]
[1731336108533,0.121066,82600.0,82599.0,0.001]
[1731336108708,0.12594221,82606.0,82585.0,0.121087]
[1731336108914,0.12594221,82606.0,82584.0,0.18190969]
[1731336109128,0.126063,82601.0,82600.0,0.001]
[1731336109464,0.13094221,82601.0,82575.0,0.18190969]
[1731336109702,0.12108,82590.0,82589.0,0.18190969]
[1731336109923,0.121086,82586.0,82577.0,0.121098]
[1731336110094,0.12594221,82600.0,82575.0,0.18190969]
[1731336110095,0.363204,82598.0,82575.0,0.18190969]
[1731336110294,0.18190969,82595.0,82575.0,0.18190969]
[1731336110499,0.242168,82587.0,82575.0,0.18190969]
[1731336110729,0.12594221,82594.0,82562.0,0.001686]
[1731336110730,0.121108,82571.0,82562.0,0.001686]
[1731336110860,0.0468,82577.0,82565.0,0.18190969]
[1731336111274,0.18190969,82585.0,82575.0,0.001]
[1731336111471,0.121094,82581.0,82575.0,0.001]
[1731336111672,0.18690969,82595.0,82569.0,0.18190969]
[1731336111941,0.18190969,82595.0,82569.0,0.3078519]
[1731336112252,0.0826,82593.0,82590.0,0.121078]
[1731336112457,0.18190969,82586.0,82571.0,0.1]
[1731336112628,0.121079,82591.0,82581.0,0.121092]
[1731336112843,0.121079,82591.0,82581.0,0.121093]
[1731336113005,0.12108,82590.0,82581.0,0.121093]
[1731336113210,0.12108,82590.0,82575.0,0.001]
[1731336113211,0.242154,82592.0,82575.0,0.001]
[1731336113428,0.12108,82590.0,82580.0,0.121094]
[1731336113610,0.0826,82593.0,82584.0,0.121088]
[1731336113870,0.18190969,82591.0,82582.0,0.230073]
[1731336114074,0.0826,82593.0,82586.0,0.121084]
[1731336114209,0.0826,82593.0,82584.0,0.121088]
[1731336114210,0.203675,82593.0,82584.0,0.121088]
[1731336114408,0.12108,82590.0,82580.0,0.121094]
[1731336114614,0.0826,82593.0,82578.0,0.230083]
[1731336114830,0.121079,82591.0,82584.0,0.001]
[1731336115126,0.18190969,82590.0,82584.0,0.001]
[1731336115267,0.121081,82589.0,82584.0,0.001]
[1731336115465,0.12594221,82592.0,82575.0,0.18359569]
[1731336115670,0.12108,82590.0,82581.0,0.121093]
[1731336116024,0.0826,82593.0,82576.0,0.18190969]
[1731336116183,0.18190969,82591.0,82575.0,0.001686]
[1731336116391,0.12594221,82590.0,82575.0,0.001686]
[1731336116593,0.01,82589.0,82575.0,0.001686]
[1731336116801,0.121099,82578.0,82575.0,0.001686]
[1731336116964,0.01126153,82587.0,82575.0,0.001686]
[1731336117162,0.1211,82576.0,82575.0,0.001686]
[1731336117449,0.1211,82576.0,82575.0,0.002686]
[1731336117450,0.27121609,82576.0,82575.0,0.002686]
[1731336117670,0.14527388,82576.0,82575.0,0.016686]
[1731336117885,0.14527388,82576.0,82575.0,0.015686]
[1731336118100,0.14527388,82576.0,82575.0,0.002686]
[1731336118288,0.02417388,82576.0,82575.0,0.002686]
[1731336118495,0.27121609,82576.0,82575.0,0.002686]
[1731336118908,0.27121609,82576.0,82575.0,0.001686]
[1731336119572,0.27121609,82576.0,82575.0,0.01449]
[1731336120029,0.27121609,82576.0,82575.0,0.00149]
[1731336120276,0.02417388,82576.0,82575.0,0.00549]
[1731336120525,0.006,82576.0,82575.0,0.00549]
[1731336120753,0.1211,82576.0,82575.0,0.00149]
[1731336121020,0.26304221,82576.0,82575.0,0.00149]
[1731336121261,0.25704221,82576.0,82575.0,0.00649]
[1731336121478,0.26829859,82576.0,82575.0,0.00649]
[1731336121698,0.27529861,82576.0,82575.0,0.00649]